Cogmind - Beta 17 @@@ ROGUE MODE // 2026.07.13 @ 20:38:19 Player: JoshuaCF Result: Destroyed by G-47 Trooper with Particle Gun Performance ------------- Evolutions (1) 500 Regions Visited (5) 1000 Robots Destroyed (60) 300 Value Destroyed (1705) 1705 Prototype IDs (4) 80 Alien Tech Used (0) 0 Bonus (0) 0 TOTAL SCORE: 3585 Bonus ------- None Cogmind --------- Core Integrity 0/400 Matter 300/300 Energy 99/100 System Corruption 7% Temperature Cool (9) Movement Core (250) Ox4 Location -8/Mines Parts ------- > --- POWER (1) -------- (None) > --- PROPULSION (3) --- (None) > --- UTILITY (3) ------ Improved Heat Sink Medium Storage Unit > --- WEAPON (2) ------- Hammer > --- INVENTORY (10) --- Aluminum Leg Aluminum Leg Aluminum Leg Machine Analyzer Utility Shielding Beam Rifle Light Assault Rifle Autogun Peak State ------------ > --- POWER ------------ Ion Engine > --- PROPULSION ------- Aluminum Leg Aluminum Leg Carbon-fiber Leg > --- UTILITY ---------- Improved Heat Sink Medium Storage Unit Sensor Array > --- WEAPON ----------- Beam Rifle Spread Laser > --- INVENTORY -------- Fission Core Aluminum Leg Aluminum Leg Aluminum Leg Improved Aluminum Leg Machine Analyzer Utility Shielding Light Assault Rifle Autogun Katana [Rating: 17] Favorites ----------- Power Ion Engine Engine Ion Engine Power Core Light Nuclear Core Propulsion Aluminum Leg Leg Aluminum Leg Utility Medium Storage Unit Device Sensor Array Storage Medium Storage Unit Protection Medium Armor Plating Weapon Autogun Energy Gun Spread Laser Ballistic Gun Autogun Launcher Grenade Launcher Impact Weapon Hammer Slashing Weapon Katana Build | -11 -10 -9 -9 -9 -8 ------- Run | Yrd Mat Mat Min Exi Min Slots Evolved 2 | . . 2 . . . Power . | . . . . . . Propulsion 1 | . . 1 . . . Utility 1 | . . 1 . . . Weapon . | . . . . . . Parts Attached 48 | 6 16 15 2 . 9 Power 6 | 1 2 2 . . 1 Engine 4 | 1 1 1 . . 1 Core 2 | . 1 1 . . . Reactor . | . . . . . . Propulsion 19 | 2 6 6 1 . 4 Treads . | . . . . . . Leg 19 | 2 6 6 1 . 4 Wheel . | . . . . . . Hover . | . . . . . . Flight . | . . . . . . Utility 9 | 1 3 3 1 . 1 Device 4 | . 1 1 1 . 1 Storage 2 | 1 1 . . . . Processor . | . . . . . . Hackware . | . . . . . . Protection 3 | . 1 2 . . . Artifact . | . . . . . . Weapon 14 | 2 5 4 . . 3 Energy Gun 4 | 1 2 1 . . . Energy Cannon . | . . . . . . Ballistic Gun 6 | 1 2 2 . . 1 Ballistic Cannon . | . . . . . . Launcher 2 | . 1 1 . . . Special Weapon . | . . . . . . Impact Weapon 1 | . . . . . 1 Slashing Weapon 1 | . . . . . 1 Piercing Weapon . | . . . . . . Special Melee Weapon . | . . . . . . Unidentified Prototypes . | . . . . . . Corrupted Parts 1 | . . 1 . . . System Corruption 5 | . . 5 . . . Parts Lost 17 | . 2 6 . . 9 Power 5 | . 1 2 . . 2 Propulsion 3 | . 1 . . . 2 Utility 5 | . . 3 . . 2 Weapon 4 | . . 1 . . 3 Highest Loss Streak 7 | . 2 2 . . 7 To Critical Strikes . | . . . . . . Average Backups 8 | 3 7 9 9 10 9 Power . | . 1 . . 1 . Propulsion 3 | 2 3 3 4 4 3 Utility 1 | . 1 2 1 2 1 Weapon 2 | . 2 2 3 3 2 Tool/Special . | . . . . . . Unused Backups 19 | . 10 2 . 1 6 Power 2 | . 1 . . 1 . Propulsion 12 | . 8 . . . 4 Utility 4 | . 1 1 . . 2 Weapon 1 | . . 1 . . . Tool/Special . | . . . . . . Average Slot Usage (%) 95 | . 93 97 94 100 89 Engine 8 | . 9 . 11 11 9 Core 3 | . 4 10 . . . Leg 30 | . 27 32 33 33 28 Device 6 | . . 9 6 11 16 Storage 12 | . 14 11 11 11 11 Protection 8 | . 8 10 11 11 2 Energy Gun 10 | . 9 8 11 11 14 Ballistic Gun 13 | . 18 12 11 11 3 Peak Build Rating 17 | 6 13 16 14 15 17 Average Rating 12 | 5 9 15 13 14 13 On Entrance 10 | . 6 12 13 14 15 Avg Prop Armor Cover (%) . | . . . . . . Naked Turns . | . . . . . . Heaviest Build 30 | 10 27 30 25 25 25 Greatest Support 36 | 20 20 36 36 36 36 Greatest Overweight (x) 4 | . 1 1 . . 4 Average Overweight (x) . | . . . . . . Largest Inventory Capacity 10 | 8 10 10 10 10 10 Average Capacity 9 | 6 8 10 10 10 10 Most Carried 10 | 6 10 10 10 10 10 Average Carried 8 | 3 7 9 9 10 9 Final Capacity 10 | 8 10 10 10 10 10 Final Carried 10 | 6 10 9 10 10 8 Class Distribution -------------------- 51% | Mutant 48% | Scavenger-Mutant Dominant Class ---------------- Mutant | -10/Materials Scavenger-Mutant | -9/Materials Scavenger-Mutant | -9/Mines Scavenger-Mutant | -9/Exiles Scavenger-Mutant | -8/Mines Resources | -11 -10 -9 -9 -9 -8 ----------- Run | Yrd Mat Mat Min Exi Min Matter Collected 1564 | 205 458 592 94 . 215 Remotely . | . . . . . . Salvage Created 2173 | . 760 979 118 . 316 Parts 111 | . 44 38 13 . 16 Haulers Intercepted 3 | . 2 1 . . . Recyclers Shooed 3 | . . 3 . . . Parts Field Recycled . | . . . . . . Retrieved Matter . | . . . . . . Parts Self-Destructed . | . . . . . . Prevented . | . . . . . . Parts Restored . | . . . . . . Kills | -11 -10 -9 -9 -9 -8 ------- Run | Yrd Mat Mat Min Exi Min Combat Hostiles Destroyed 46 | . 15 19 6 . 6 Melee 2 | . . . . . 2 Guns 39 | . 12 18 6 . 3 AOE 4 | . 3 1 . . . Classes Destroyed 12 | . 7 3 . . 2 Worker 3 | . 3 . . . . Builder 2 | . 1 . . . 1 Hauler 3 | . 2 1 . . . Recycler 4 | . 2 2 . . . Mechanic 1 | . . 1 . . . Watcher 1 | . 1 . . . . Swarmer 7 | . 3 . 4 . . Grunt 30 | . 12 14 2 . 2 Brawler 1 | . . . . . 1 Duelist 3 | . . 1 . . 2 Sentry 4 | . . 4 . . . Hunter 1 | . . . . . 1 Best Kill Streak 6 | . 6 4 4 . 2 Combat Bots Only 4 | . 4 3 4 . 2 Max Kills in Single Turn 3 | . 3 1 2 . 1 Gunslinging 1 | . . . 1 . . Exploded 2 | . 2 1 . . . Melee 1 | . . . . . 1 Uniques/NPCs Destroyed . | . . . . . . Combat | -11 -10 -9 -9 -9 -8 -------- Run | Yrd Mat Mat Min Exi Min Hostile Shots Fired 255 | . 79 79 27 . 70 Missed 59 | . 23 12 6 . 18 Hits 196 | . 56 67 21 . 52 Melee 22 | . . 2 . . 20 Projectile 174 | . 56 65 21 . 32 Critical Strikes 9 | . 1 2 1 . 5 Damage Taken 2889 | . 663 890 204 . 1132 Core 579 | . 165 100 41 . 273 Absorbed by Shields . | . . . . . . Regen/Repaired (Parts) 73 | . . 73 . . . Core Remaining (%) 67 | 100 34 . . . . Volleys Fired 159 | . 60 69 13 . 17 Largest 2 | . 2 2 2 . 2 Hottest 121 | . 88 98 88 . 121 Shots Fired 311 | . 117 135 25 1 33 Gun 308 | . 115 134 25 1 33 Cannon . | . . . . . . Launcher 3 | . 2 1 . . . Special . | . . . . . . Kinetic 179 | . 74 75 12 . 18 Thermal 92 | . 8 55 13 1 15 Explosive 2 | . 2 . . . . Electromagnetic 38 | . 33 5 . . . Robot Hit Streak 20 | . 8 20 7 . 6 Robot Miss Streak 8 | . 3 8 5 . 3 Penetration Max . | . . . . . . Secondary Targets 1 | . . . 1 . . Max Gunslinging Chain 1 | . . . 1 . . Shots Hit Robots 253 | . 78 110 22 . 43 Core Hits 150 | . 39 81 17 . 13 Critical Kills 3 | . 1 1 . . 1 Critical Parts Destroyed 4 | . . 3 . . 1 Critical Strikes 8 | . 1 5 . . 2 Burn 1 | . . 1 . . . Destroy 5 | . 1 4 . . . Smash 2 | . . . . . 2 Melee Attacks 28 | . . . . . 28 Impact 14 | . . . . . 14 Slashing 14 | . . . . . 14 Piercing . | . . . . . . Sneak Attacks . | . . . . . . Combat Hostiles . | . . . . . . Follow-up Attacks . | . . . . . . Damage Inflicted 4086 | . 1434 1620 234 . 798 Guns 3152 | . 984 1601 234 . 333 Cannons . | . . . . . . Explosions 469 | . 450 19 . . . Melee 465 | . . . . . 465 Ramming . | . . . . . . Kinetic 1875 | . 594 953 126 . 202 Thermal 1007 | . 143 625 108 . 131 Explosive 369 | . 369 . . . . Electromagnetic 370 | . 328 42 . . . Impact 234 | . . . . . 234 Slashing 231 | . . . . . 231 Piercing . | . . . . . . Highest Corruption 7 | . . 5 5 5 7 Average Corruption 5 | . . 5 5 5 5 Corruption Purged . | . . . . . . Corruption Blocked . | . . . . . . Effects 45 | . . 7 9 15 14 Message Errors 12 | . . 1 2 3 6 Matter Fused 8 | . . 1 2 3 2 Heat Flow Errors 10 | . . 3 2 5 . Energy Discharges 6 | . . 1 . 2 3 Parts Rejected 1 | . . . . . 1 Parts Fused 1 | . . . . 1 . Data Loss (major) 1 | . . . . . 1 Misfires 2 | . . . 1 1 . Weapon Failures 4 | . . 1 2 . 1 Overload Shots . | . . . . . . Overflow Damage 45 | . 16 . . . 29 Projectiles . | . . . . . . Explosions 16 | . 16 . . . . Melee 29 | . . . . . 29 Knockbacks . | . . . . . . Impact . | . . . . . . Kinetic . | . . . . . . Secondary . | . . . . . . Self-Inflicted Damage 20 | . . 20 . . . Shots 1 | . . 1 . . . Rammed . | . . . . . . Targets Rammed . | . . . . . . Kicked . | . . . . . . Crushed . | . . . . . . Highest Temperature 431 | . 328 345 431 238 91 Average Temperature 107 | . 96 108 169 104 23 Received Heat Transfer 1152 | . 342 420 75 . 315 Effects 10 | . 1 7 2 . . Shutdowns 1 | . 1 . . . . Interference 7 | . . 6 1 . . Matter Decay 1 | . . 1 . . . Short Circuit 1 | . . . 1 . . Siege Activations . | . . . . . . Martial Activations . | . . . . . . Shielding Activations . | . . . . . . Robots Disrupted . | . . . . . . Combat Hostiles . | . . . . . . Robots Corrupted 1 | . . . . . 1 Combat Hostiles 1 | . . . . . 1 Parts Fried 1 | . 1 . . . . Impact Corruptions 2 | . . . . . 2 Robots Melted . | . . . . . . Combat Hostiles . | . . . . . . Parts Melted 1 | . . . . . 1 Heat Transferred 1679 | . 225 1032 140 . 282 Parts Sabotaged . | . . . . . . Parts Stolen . | . . . . . . Parts Stripped . | . . . . . . Power Chain Reactions 2 | . 2 . . . . Alert | -11 -10 -9 -9 -9 -8 ------- Run | Yrd Mat Mat Min Exi Min Maximum Alert Level 1 | . . 1 . . . Low Security (%) 91 | 100 100 68 100 . 100 Level 1 8 | . . 31 . . . Level 2 . | . . . . . . Level 3 . | . . . . . . Level 4 . | . . . . . . Level 5 . | . . . . . . High Security . | . . . . . . Max Security . | . . . . . . Peak Influence 339 | . 193 339 198 . 49 Initial 123 | . . 56 123 . . Average 93 | . 89 135 149 . 11 Influence Increases 1575 | . 534 691 155 . 195 Destroy 0b10 Robot/C 920 | . 300 380 120 . 120 Destroy 0b10 Robot/NC 70 | . 45 20 . . 5 Destroy Leader 238 | . 66 112 20 . 40 Successful Hack 64 | . 51 13 . . . Disable Machine 60 | . 30 30 . . . Destroy Structure 13 | . 12 1 . . . Lose Combat Pursuer 210 | . 30 135 15 . 30 Influence Decreases 1534 | . 399 509 334 138 154 Entered New Map 411 | . . 79 194 138 . Time Decay 1015 | . 379 374 140 . 122 Lost Part 108 | . 20 56 . . 32 Squads Dispatched 8 | . 4 4 . . . Investigation 5 | . 2 3 . . . Extermination . | . . . . . . Reinforcement 3 | . 2 1 . . . Assault . | . . . . . . Garrison . | . . . . . . Intercept . | . . . . . . Searches Triggered . | . . . . . . Construction Impeded . | . . . . . . Haulers Reinforced . | . . . . . . Active Scanning Responses . | . . . . . . Cargo Convoy Interrupts . | . . . . . . Stealth | -11 -10 -9 -9 -9 -8 --------- Run | Yrd Mat Mat Min Exi Min Distress Signals 5 | . 1 4 . . . Communications Jammed . | . . . . . . Distress Signals . | . . . . . . Times Spotted 77 | . 26 34 7 . 10 Peak Tracking Total 9 | . 4 9 4 . 6 Tactical Retreats 7 | . 1 3 1 . 2 Traps | -11 -10 -9 -9 -9 -8 ------- Run | Yrd Mat Mat Min Exi Min Traps Triggered 2 | . 2 . . . . Indirectly . | . . . . . . Trap Hack Attempts . | . . . . . . Triggered . | . . . . . . Disarmed . | . . . . . . Reprogrammed . | . . . . . . Reused . | . . . . . . Traps Extracted . | . . . . . . Installed . | . . . . . . Triggered . | . . . . . . Machines | -11 -10 -9 -9 -9 -8 ---------- Run | Yrd Mat Mat Min Exi Min Machines Disabled 4 | . 2 2 . . . Max in Single Turn 2 | . 1 2 . . . Machines Repaired . | . . . . . . Machines Dismantled . | . . . . . . Machines Sabotaged . | . . . . . . Overloaded Fab Kills . | . . . . . . Hacking | -11 -10 -9 -9 -9 -8 --------- Run | Yrd Mat Mat Min Exi Min Machines Accessed 17 | . 8 5 . 4 . Terminals 10 | . 7 3 . . . Fabricators . | . . . . . . Repair Stations 1 | . . 1 . . . Recycling Units 2 | . 1 1 . . . Scanalyzers . | . . . . . . Garrison Access . | . . . . . . Total Hacks 57 | . 32 21 . 4 . Successful 34 | . 17 13 . 4 . Failed 22 | . 14 8 . . . Catastrophic 2 | . 1 1 . . . Database Lockouts 1 | . 1 . . . . Manual 39 | . 25 14 . . . Terminals 43 | . 29 14 . . . Fabricators . | . . . . . . Repair Stations 4 | . . 4 . . . Recycling Units 6 | . 3 3 . . . Scanalyzers . | . . . . . . Garrison Access . | . . . . . . Terminal Hacks 19 | . 9 6 . 4 . Record 4 | . . . . 4 . Part Schematic 1 | . 1 . . . . Robot Analysis 5 | . 1 4 . . . Prototype ID Bank 2 | . 2 . . . . Terminal Index 2 | . 1 1 . . . Locate Traps 2 | . 1 1 . . . Hauler Manifests 1 | . 1 . . . . Registered Components 1 | . 1 . . . . Zone Layout 1 | . 1 . . . . Fabricator Hacks . | . . . . . . Repair Station Hacks 4 | . . 4 . . . Scan Component 2 | . . 2 . . . Repair 2 | . . 2 . . . Recycling Unit Hacks 5 | . 3 2 . . . Process 1 | . 1 . . . . Report Inventory 3 | . 2 1 . . . Retrieve Components 1 | . . 1 . . . Scanalyzer . | . . . . . . Garrison Access Hacks . | . . . . . . Unauthorized Hacks 6 | . 5 1 . . . Terminals 6 | . 5 1 . . . Botnet 6 | . 5 1 . . . Fabricators . | . . . . . . Repair Stations . | . . . . . . Recycling Units . | . . . . . . Scanalyzers . | . . . . . . Garrison Access . | . . . . . . Data Cores Recovered . | . . . . . . Used . | . . . . . . Hacking Detections 12 | . 7 5 . . . Full Trace Events 10 | . 6 4 . . . Feedback Events . | . . . . . . Feedback Blocked . | . . . . . . Robot Schematics Acquired . | . . . . . . Robots Built . | . . . . . . Authchips . | . . . . . . Time . | . . . . . . Total Robot Build Rating . | . . . . . . Part Schematics Acquired 1 | . 1 . . . . Parts Built . | . . . . . . Authchips . | . . . . . . Time . | . . . . . . Total Part Build Rating . | . . . . . . Part Studies Acquired . | . . . . . . Parts Repaired 2 | . . 2 . . . Time 58 | . . 58 . . . Parts Recycled . | . . . . . . Recycled Matter 19 | . 19 . . . . Retrieved Matter . | . . . . . . Retrieved Components 9 | . . 9 . . . Parts Scanalyzed . | . . . . . . Part Schematics Acquired . | . . . . . . Parts Damaged . | . . . . . . Bothacking | -11 -10 -9 -9 -9 -8 ------------ Run | Yrd Mat Mat Min Exi Min Used RIF Installer . | . . . . . . Robots Hacked . | . . . . . . Non-combat . | . . . . . . Combat . | . . . . . . Robot Hacks Applied . | . . . . . . Relay Couplers Released . | . . . . . . Fabnet Peak Effective % . | . . . . . . Robots Rewired . | . . . . . . Allies Hacked . | . . . . . . Hacks Repelled . | . . . . . . Allies | -11 -10 -9 -9 -9 -8 -------- Run | Yrd Mat Mat Min Exi Min Total Allies . | . . . . . . Largest Group . | . . . . . . Highest-Rated Group . | . . . . . . Highest-Rated Ally . | . . . . . . Total Orders . | . . . . . . Ally Attacks . | . . . . . . Total Damage . | . . . . . . Kills . | . . . . . . Allies Corrupted . | . . . . . . Allies Melted . | . . . . . . Intel | -11 -10 -9 -9 -9 -8 ------- Run | Yrd Mat Mat Min Exi Min Active Infowar (turns) 1997 | . . 766 148 664 419 Sensors 1997 | . . 766 148 664 419 Robot Analysis Total 4 | . 1 3 . . . Derelict Logs Recovered 1 | . . . 1 . . Drone Launches . | . . . . . . Drone Recoveries . | . . . . . . Exploration | -11 -10 -9 -9 -9 -8 ------------- Run | Yrd Mat Mat Min Exi Min Turns Passed 4041 | 57 1644 872 293 664 511 Spaces Moved 2159 | 37 725 390 181 554 272 Core 10 | 3 . . . . 7 Treads . | . . . . . . Legs 2149 | 34 725 390 181 554 265 Wheels . | . . . . . . Hover . | . . . . . . Flight . | . . . . . . Fastest Speed 50 | 50 120 120 120 120 120 Average Speed 134 | 114 162 120 120 120 123 Slowest Speed 250 | 120 190 190 120 120 250 Overloaded Moves . | . . . . . . Propulsion Burnouts . | . . . . . . Robots Hopped . | . . . . . . Potential Cave-ins . | . . . . . . Cave-ins Triggered . | . . . . . . Exploration Rate (%) 50 | 4 81 31 36 91 62 Regions Visited 5 Branch Regions 3 Pre-discovered Areas 1 | . . . 1 . . Known Exits Taken . | . . . . . . Unknown Exits Taken 5 | 1 1 1 1 1 . Scrap Searched 2 | . . . 1 . 1 Spaces Dug . | . . . . . . Terrain Destroyed 10 | . 10 . . . . Melee . | . . . . . . Projectile . | . . . . . . AOE 10 | . 10 . . . . Terrain Rammed . | . . . . . . Walls Destroyed . | . . . . . . Machines Disabled . | . . . . . . Actions | -11 -10 -9 -9 -9 -8 --------- Run | Yrd Mat Mat Min Exi Min Total 2971 | 48 1099 660 232 555 377 Wait 468 | . 254 157 28 . 29 Move 2154 | 36 724 389 180 553 272 Hop . | . . . . . . Pick Up 51 | 6 20 11 4 1 9 Fast Attach 12 | 6 2 2 . . 2 Attach 13 | . 2 6 1 . 4 Detach . | . . . . . . Swap 46 | . 17 18 3 . 8 Drop 40 | . 20 8 3 1 8 Fire 159 | . 60 69 13 . 17 Melee 28 | . . . . . 28 Ram . | . . . . . . Kick . | . . . . . . Crush . | . . . . . . Escape Stasis . | . . . . . . Rewire . | . . . . . . Trap . | . . . . . . Miscellaneous . | . . . . . . Route ------- -11/Scrapyard -10/Materials (discovered 4 exits: *Mat x2 / [*Min] / [*Sub]) -9/Materials (discovered 2 exits: [*Min x2]) -9/Mines -9/Exiles (discovered 2 exits: [*Min x2]) -8/Mines History --------- Turn | Location | Event 40 | -11/Scrapyard | Discovered new exit (range 16) 58 | -11/Scrapyard | Entered Materials 317 | -10/Materials | Build established: Mutant 536 | -10/Materials | Discovered new exit (range 11) 1140 | -10/Materials | Core integrity fell below 50% 1341 | -10/Materials | Discovered new exit (range 6) 1360 | -10/Materials | Discovered new exit (range 11) 1582 | -10/Materials | Central database locked down 1592 | -10/Materials | Discovered new exit (range 15) 1702 | -10/Materials | Entered another Materials area 1702 | -9/Materials | Evolved 2 slots: Propulsion x1, Utility x1 1916 | -9/Materials | Repaired Spread Laser 1943 | -9/Materials | Repaired Aluminum Leg? 2011 | -9/Materials | Build established: Scavenger-Mutant 2167 | -9/Materials | Discovered new exit (range 16) 2561 | -9/Materials | Discovered new exit (range 8) 2574 | -9/Materials | Entered Mines 2614 | -9/Mines | Met a Derelict bent on vengeance 2728 | -9/Mines | Learned Materials stockpile data 2801 | -9/Mines | Learned location of Storage (-7) 2862 | -9/Mines | Deemed a non-threat by the Exiles lab entrance 2862 | -9/Mines | Discovered new exit (range 5) 2867 | -9/Mines | Entered Exiles 2867 | -9/Exiles | Found Exiles lab abandoned 2883 | -9/Exiles | Discovered new exit (range 15) 3057 | -9/Exiles | Discovered new exit (range 10) 3531 | -9/Exiles | Entered Mines 3936 | -8/Mines | Core integrity fell below 50% 4013 | -8/Mines | Core integrity fell below 20% 4016 | -8/Mines | Lost 7 parts (2p2n1u2w) 4042 | -8/Mines | Destroyed by G-47 Trooper with Particle Gun Last Messages --------------- Lgt. Ion Engine destroyed. K-01 Serf cleans the Laser Drill. Katana destroyed. Acquired Hammer. K-01 Serf cleans the Laser Drill. Destroyed Imp. Ion Engine. L-31 Rogue system corrupted by crushing effect. L-31 Rogue system terminally corrupted. Acquired 10 matter. K-01 Serf cleans the Laser Drill. System corrupted: Energy discharge (-28). K-01 Serf collects debris. G-47 Trooper suffers critical hit (Smash). G-47 Trooper destroyed. G-47 Trooper suffers critical hit (Smash). Destroyed Particle Gun. G-47 Trooper system corrupted by crushing effect. Critical hit (Burn: +37). Laser Drill disabled. JNUO1ZXYHQUJD>JOY1T K=CZBGWS Map ----- +----------------------------------------------------+ | ????????????# #???????????????# ####??## #????? | | ?????# ""???# #???????????????# #????## ##????? | | ?????# ""???# #???????????????# #???## ##?????? | | ?????# """??# #???????????????# ##### ##??????? | | ?????# ?# #???????????##### ##???????? | | ?????# """ # #???????????# #????????? | | ?????# """ # ##??????????# ##????????? | | ?????# """ #??????????# ##### ##?????????? | | ?????# # #??????????# #???## ##??????????? | | ?????######## #??????????# #????####???????????? | | ????????????# #?????????## #???????????????????? | | ????????????# #????????# #???????????????????? | | ????????????# ###????## ####????????????????? | | ????????????# ##??## ?????????????????? | | ????????????# #??# ???????????????????? | | ???????????## #??# #????????????????????? | | ??#??##???## #### #????????????????????? | | ??# ##"#### ## #????????????????????? | | ###""" #????????????????????? | | #????????????????????? | | %* ## #?????????????????????? | | ##"""" #### ## ###?????????????????????? | | ????#### #??#!## ########## #???????????? | | ???????### ##??#%## ## #???????????? | | ?????????## ###???#=%= t g #???????????? | | ??????????#####?????#%== @ "" ####?????????????? | | ????????????????????# #### """ #????????????????? | | ????????????????????# #??# """ ##????????????????? | | ????????????????????# #??# #?????????????????? | | ????????????????????# ?? #?????????????????? | | ????????????????????###??## ##?????????????????? | | ??????????????????????????#####??????????????????? | | ?????????????????????????????????????????????????? | | ?????????????????????????????????????????????????? | | ?????????????????????????????????????????????????? | | ?????????????????????????????????????????????????? | | ?????????????????????????????????????????????????? | | ?????????????????????????????????????????????????? | | ?????????????????????????????????????????????????? | | ?????????????????????????????????????????????????? | | ?????????????????????????????????????????????????? | | | | | | | | | | | | | | | | | | | +----------------------------------------------------+ Best States ------------- Heat Dissipation 42 Energy Generation 14 Energy Capacity 250 Matter Stores 300 Matter Capacity 300 Sight Range 16 Robot Scan Range 14 Terrain Scan Density 10 Armor Coverage 225 Evasion (%) 55 Item Schematics ----------------- Lgt. Armor Plating | -10/Materials | Hacked Robot Schematics ------------------ None Fabricated ------------ Nothing Repaired ---------- Spread Laser | 51% | -9/Materials Aluminum Leg | 62% | -9/Materials Studied --------- None Alien Tech Used ----------------- None Achievements -------------- None Challenges ------------ None Game ------ Seed PietyNovaTransmogrifier Manual? 0 Play Time 00:41:05 Cumulative 15.3 hours Start 2026.07.13 @ 19:57:48 End 2026.07.13 @ 20:38:19 Sessions 1 Manual Loads 0 Difficulty Rogue Special Mode None Game No. 12 Rogue 12 Adventurer 0 Explorer 0 Win Type - Total 0 Types 0/0/0/0/0/0/0/0/0/0 Lore% 20 Gallery% 17 Achievement% 18 Wizard Run 0 Options --------- Layout 0 ASCII 0 Keyboard 1 Movement Vi Keybinds 0 Fullscreen 1 Font 18/SmallcapsGlow Map View 76x50 Zoom Use 0% Tactical HUD 0 Map Filters NONE Filters NONE Steam 1 RUN: 426497fb-0623-4e5f-bcf5-597222725645